[Event "Titled Tuesday Blitz May 10 Early 2022"]
[White "Stepanencu, Nicodim-Cosmin"]
[Black "Maksimenko, Viktor"]
[WhiteFideId "1256220"]
[BlackFideId "13710478"]
[WhiteElo "1945"]
[BlackElo "2269"]
[Result "0-1"]
[Round "07"]
[TimeControl "180+1"]
[Date "2022.05.11"]
[WhiteClock "0:00:02"]
[BlackClock "0:01:10"]

1. b3 {[%clk 0:03:00]}  d5 {[%clk 0:02:59]} 2. Bb2 {[%clk 0:02:59]}  Bg4 {[%clk 0:02:59]} 3. f3 {[%clk 0:02:57]}  Bh5 {[%clk 0:02:59]} 4. h4 {[%clk 0:02:58]}  Qd6 {[%clk 0:02:53]} 5. Nh3 {[%clk 0:02:21]}  f6 {[%clk 0:02:49]} 6. d4 {[%clk 0:02:18]}  Nc6 {[%clk 0:02:46]} 7. c4 {[%clk 0:02:17]}  O-O-O {[%clk 0:02:45]} 8. cxd5 {[%clk 0:02:14]}  Qxd5 {[%clk 0:02:42]} 9. Nf4 {[%clk 0:02:15]}  Qa5+ {[%clk 0:02:20]} 10. Bc3 {[%clk 0:02:13]}  Qf5 {[%clk 0:02:20]} 11. e3 {[%clk 0:02:12]}  Bf7 {[%clk 0:02:16]} 12. g4 {[%clk 0:01:56]}  Qd7 {[%clk 0:02:12]} 13. Bh3 {[%clk 0:01:55]}  Kb8 {[%clk 0:02:12]} 14. g5 {[%clk 0:01:55]}  Qd6 {[%clk 0:02:11]} 15. Nd2 {[%clk 0:01:53]}  e5 {[%clk 0:02:10]} 16. Ne4 {[%clk 0:01:51]}  Qa3 {[%clk 0:02:03]} 17. Nd3 {[%clk 0:01:22]}  exd4 {[%clk 0:02:00]} 18. exd4 {[%clk 0:01:22]}  Nxd4 {[%clk 0:01:54]} 19. O-O {[%clk 0:01:10]}  Nc6 {[%clk 0:01:37]} 20. Qe2 {[%clk 0:00:51]}  Nge7 {[%clk 0:01:30]} 21. gxf6 {[%clk 0:00:50]}  Nd5 {[%clk 0:01:30]} 22. fxg7 {[%clk 0:00:48]}  Rg8 {[%clk 0:01:28]} 23. Bb2 {[%clk 0:00:46]}  Qe7 {[%clk 0:01:18]} 24. Qg2 {[%clk 0:00:05]}  Bxg7 {[%clk 0:01:10]} 25. Bxg7 {[%clk 0:00:04]}  Bg6 {[%clk 0:01:11]} 26. Bf6 {[%clk 0:00:01]}  Nxf6 {[%clk 0:01:11]} 27. Nxf6 {[%clk 0:00:02]}  Qxf6 {[%clk 0:01:10]} 28. Nf4 {[%clk 0:00:02]}  Qxf4 {[%clk 0:01:10]} 0-1


[Site "https://www.chess.com"]

[Event "Titled Tuesday Blitz May 10 Early 2022"]
[White "Suleymanli, Suleyman"]
[Black "Maksimovic, Bojan"]
[WhiteFideId "13416375"]
[BlackFideId "14408120"]
[WhiteElo "1598"]
[BlackElo "2448"]
[Result "0-1"]
[Round "07"]
[TimeControl "180+1"]
[Date "2022.05.11"]
[WhiteClock "0:00:09"]
[BlackClock "0:00:07"]

1. Nf3 {[%clk 0:03:00]}  Nf6 {[%clk 0:03:00]} 2. d4 {[%clk 0:03:01]}  g6 {[%clk 0:03:01]} 3. g3 {[%clk 0:03:01]}  Bg7 {[%clk 0:03:01]} 4. Bg2 {[%clk 0:03:01]}  O-O {[%clk 0:03:02]} 5. O-O {[%clk 0:03:02]}  d5 {[%clk 0:03:03]} 6. c4 {[%clk 0:03:02]}  dxc4 {[%clk 0:03:03]} 7. Na3 {[%clk 0:03:02]}  c3 {[%clk 0:03:04]} 8. bxc3 {[%clk 0:03:03]}  c5 {[%clk 0:03:05]} 9. Nc4 {[%clk 0:03:03]}  Nc6 {[%clk 0:02:54]} 10. Nce5 {[%clk 0:03:02]}  Nd5 {[%clk 0:02:49]} 11. Bb2 {[%clk 0:02:55]}  Nxe5 {[%clk 0:02:46]} 12. Nxe5 {[%clk 0:02:53]}  Bxe5 {[%clk 0:02:42]} 13. dxe5 {[%clk 0:02:54]}  Be6 {[%clk 0:02:42]} 14. c4 {[%clk 0:02:52]}  Nb6 {[%clk 0:02:40]} 15. Qxd8 {[%clk 0:02:47]}  Raxd8 {[%clk 0:02:34]} 16. Bxb7 {[%clk 0:02:47]}  Rd2 {[%clk 0:02:24]} 17. Ba3 {[%clk 0:02:47]}  Rb8 {[%clk 0:01:53]} 18. Bf3 {[%clk 0:02:40]}  Rc8 {[%clk 0:01:48]} 19. Bc1 {[%clk 0:02:27]}  Rd7 {[%clk 0:01:39]} 20. Bf4 {[%clk 0:02:22]}  Nxc4 {[%clk 0:01:17]} 21. Rfc1 {[%clk 0:02:12]}  Kg7 {[%clk 0:01:13]} 22. Rc2 {[%clk 0:02:09]}  Nb6 {[%clk 0:01:09]} 23. Rac1 {[%clk 0:02:08]}  c4 {[%clk 0:01:09]} 24. Be3 {[%clk 0:02:07]}  h6 {[%clk 0:01:08]} 25. Be4 {[%clk 0:01:53]}  Na4 {[%clk 0:01:02]} 26. f4 {[%clk 0:01:45]}  c3 {[%clk 0:00:54]} 27. Bd3 {[%clk 0:01:43]}  Rb8 {[%clk 0:00:39]} 28. a3 {[%clk 0:01:32]}  Bf5 {[%clk 0:00:33]} 29. Bxf5 {[%clk 0:01:25]}  gxf5 {[%clk 0:00:34]} 30. Kf2 {[%clk 0:01:14]}  Rb3 {[%clk 0:00:32]} 31. Ra1 {[%clk 0:01:07]}  Kf8 {[%clk 0:00:25]} 32. h3 {[%clk 0:01:00]}  h5 {[%clk 0:00:25]} 33. Rac1 {[%clk 0:00:43]}  e6 {[%clk 0:00:21]} 34. Ra1 {[%clk 0:00:40]}  Ke8 {[%clk 0:00:21]} 35. Rac1 {[%clk 0:00:40]}  Kd8 {[%clk 0:00:22]} 36. Ra1 {[%clk 0:00:40]}  Kc8 {[%clk 0:00:22]} 37. Kf3 {[%clk 0:00:34]}  Kb7 {[%clk 0:00:18]} 38. Kf2 {[%clk 0:00:32]}  Kc6 {[%clk 0:00:16]} 39. Kf3 {[%clk 0:00:30]}  Kb5 {[%clk 0:00:17]} 40. Rcc1 {[%clk 0:00:26]}  Kc4 {[%clk 0:00:16]} 41. Kf2 {[%clk 0:00:18]}  a6 {[%clk 0:00:17]} 42. Ke1 {[%clk 0:00:17]}  Rb2 {[%clk 0:00:17]} 43. Rab1 {[%clk 0:00:12]}  Kb3 {[%clk 0:00:16]} 44. Ra1 {[%clk 0:00:12]}  c2 {[%clk 0:00:11]} 45. Bd2 {[%clk 0:00:11]}  Nb6 {[%clk 0:00:10]} 46. a4 {[%clk 0:00:11]}  Nc4 {[%clk 0:00:10]} 47. a5 {[%clk 0:00:04]}  Rxd2 {[%clk 0:00:09]} 48. e4 {[%clk 0:00:03]}  fxe4 {[%clk 0:00:09]} 49. g4 {[%clk 0:00:03]}  hxg4 {[%clk 0:00:08]} 50. hxg4 {[%clk 0:00:04]}  e3 {[%clk 0:00:08]} 51. f5 {[%clk 0:00:05]}  Rf2 {[%clk 0:00:06]} 52. fxe6 {[%clk 0:00:05]}  fxe6 {[%clk 0:00:07]} 53. g5 {[%clk 0:00:06]}  Rg2 {[%clk 0:00:08]} 54. g6 {[%clk 0:00:07]}  Kc3 {[%clk 0:00:08]} 55. g7 {[%clk 0:00:08]}  Kd3 {[%clk 0:00:08]} 56. Kf1 {[%clk 0:00:08]}  Rxg7 {[%clk 0:00:08]} 57. Re1 {[%clk 0:00:09]}  Nd2# {[%clk 0:00:07]} 0-1


[Site "https://www.chess.com"]

[Event "Titled Tuesday Blitz May 10 Early 2022"]
[White "Thomas, Anysia"]
[Black "Broca Jimenez, Fernando"]
[WhiteFideId "670472"]
[BlackFideId "5104742"]
[WhiteElo "2002"]
[BlackElo "2062"]
[Result "1-0"]
[Round "07"]
[TimeControl "180+1"]
[Date "2022.05.11"]
[WhiteClock "0:00:12"]
[BlackClock "0:00:05"]

1. d4 {[%clk 0:03:00]}  Nf6 {[%clk 0:02:58]} 2. c4 {[%clk 0:03:00]}  g6 {[%clk 0:02:57]} 3. Nc3 {[%clk 0:03:00]}  Bg7 {[%clk 0:02:56]} 4. e4 {[%clk 0:03:01]}  d6 {[%clk 0:02:57]} 5. Nf3 {[%clk 0:03:01]}  O-O {[%clk 0:02:56]} 6. h3 {[%clk 0:03:02]}  e5 {[%clk 0:02:56]} 7. d5 {[%clk 0:03:02]}  a5 {[%clk 0:02:52]} 8. Be3 {[%clk 0:02:40]}  Na6 {[%clk 0:02:48]} 9. g4 {[%clk 0:02:40]}  c5 {[%clk 0:02:42]} 10. Be2 {[%clk 0:02:30]}  Bd7 {[%clk 0:02:36]} 11. Nd2 {[%clk 0:02:28]}  Re8 {[%clk 0:02:33]} 12. h4 {[%clk 0:02:28]}  Rb8 {[%clk 0:02:30]} 13. g5 {[%clk 0:02:25]}  Nh5 {[%clk 0:02:20]} 14. Bxh5 {[%clk 0:02:25]}  gxh5 {[%clk 0:02:21]} 15. Qxh5 {[%clk 0:02:25]}  Nc7 {[%clk 0:02:17]} 16. a4 {[%clk 0:02:22]}  Na6 {[%clk 0:02:14]} 17. Qe2 {[%clk 0:01:58]}  Nb4 {[%clk 0:02:03]} 18. Rc1 {[%clk 0:01:57]}  f5 {[%clk 0:01:46]} 19. gxf6 {[%clk 0:01:55]}  Qxf6 {[%clk 0:01:43]} 20. Bg5 {[%clk 0:01:51]}  Qf7 {[%clk 0:01:39]} 21. Rg1 {[%clk 0:01:50]}  Kh8 {[%clk 0:01:36]} 22. h5 {[%clk 0:01:40]}  Rg8 {[%clk 0:01:28]} 23. Nf1 {[%clk 0:01:38]}  Rbf8 {[%clk 0:01:26]} 24. Ne3 {[%clk 0:01:16]}  Bf6 {[%clk 0:01:04]} 25. Bxf6+ {[%clk 0:00:45]}  Qxf6 {[%clk 0:01:05]} 26. Rxg8+ {[%clk 0:00:45]}  Rxg8 {[%clk 0:01:05]} 27. Kd2 {[%clk 0:00:43]}  Qf4 {[%clk 0:00:53]} 28. Rh1 {[%clk 0:00:37]}  Rg2 {[%clk 0:00:44]} 29. Nd1 {[%clk 0:00:30]}  Bg4 {[%clk 0:00:19]} 30. Qf1 {[%clk 0:00:26]}  Bf3 {[%clk 0:00:19]} 31. Rh3 {[%clk 0:00:23]}  Qxe4 {[%clk 0:00:18]} 32. h6 {[%clk 0:00:17]}  Rg6 {[%clk 0:00:11]} 33. Rg3 {[%clk 0:00:15]}  Rxg3 {[%clk 0:00:10]} 34. fxg3 {[%clk 0:00:15]}  Na2 {[%clk 0:00:05]} 35. Qh3 {[%clk 0:00:12]} 1-0


[Site "https://www.chess.com"]

[Event "Titled Tuesday Blitz May 10 Early 2022"]
[White "Tomaszewski, Kacper"]
[Black "Polster, Christian"]
[WhiteFideId "1127373"]
[BlackFideId "12965081"]
[WhiteElo "2153"]
[BlackElo "2281"]
[Result "1-0"]
[Round "07"]
[TimeControl "180+1"]
[Date "2022.05.11"]
[WhiteClock "0:01:37"]
[BlackClock "0:01:26"]

1. e4 {[%clk 0:03:00]}  c5 {[%clk 0:02:58]} 2. Nf3 {[%clk 0:03:00]}  d6 {[%clk 0:02:59]} 3. Bb5+ {[%clk 0:02:55]}  Bd7 {[%clk 0:02:59]} 4. c4 {[%clk 0:02:54]}  Nf6 {[%clk 0:02:57]} 5. Nc3 {[%clk 0:02:53]}  g6 {[%clk 0:02:51]} 6. O-O {[%clk 0:02:52]}  Bg7 {[%clk 0:02:51]} 7. d4 {[%clk 0:02:52]}  cxd4 {[%clk 0:02:51]} 8. Nxd4 {[%clk 0:02:52]}  O-O {[%clk 0:02:52]} 9. Bxd7 {[%clk 0:02:51]}  Qxd7 {[%clk 0:02:51]} 10. Be3 {[%clk 0:02:50]}  Nc6 {[%clk 0:02:52]} 11. f3 {[%clk 0:02:46]}  Rfc8 {[%clk 0:02:50]} 12. b3 {[%clk 0:02:41]}  Nxd4 {[%clk 0:02:50]} 13. Bxd4 {[%clk 0:02:41]}  Qd8 {[%clk 0:02:50]} 14. Rc1 {[%clk 0:02:40]}  Nd7 {[%clk 0:02:50]} 15. Bxg7 {[%clk 0:02:39]}  Kxg7 {[%clk 0:02:51]} 16. Qd4+ {[%clk 0:02:38]}  Kg8 {[%clk 0:02:50]} 17. Nd5 {[%clk 0:02:38]}  e6 {[%clk 0:02:43]} 18. Ne3 {[%clk 0:02:36]}  Qb6 {[%clk 0:02:42]} 19. Rfd1 {[%clk 0:02:33]}  Rc6 {[%clk 0:02:36]} 20. Kf2 {[%clk 0:02:29]}  Qxd4 {[%clk 0:02:31]} 21. Rxd4 {[%clk 0:02:28]}  Kf8 {[%clk 0:02:31]} 22. Rcd1 {[%clk 0:02:19]}  Ke7 {[%clk 0:02:31]} 23. g4 {[%clk 0:02:17]}  a5 {[%clk 0:02:23]} 24. h4 {[%clk 0:02:15]}  a4 {[%clk 0:02:16]} 25. b4 {[%clk 0:02:15]}  a3 {[%clk 0:02:14]} 26. b5 {[%clk 0:02:02]}  Rb6 {[%clk 0:02:13]} 27. Nc2 {[%clk 0:02:00]}  Ra4 {[%clk 0:02:08]} 28. f4 {[%clk 0:01:46]}  e5 {[%clk 0:02:02]} 29. fxe5 {[%clk 0:01:45]}  Nxe5 {[%clk 0:02:01]} 30. Ne3 {[%clk 0:01:45]}  Ke6 {[%clk 0:01:46]} 31. Nd5 {[%clk 0:01:38]}  Nxg4+ {[%clk 0:01:26]} 32. Kg3 {[%clk 0:01:37]} 1-0


[Site "https://www.chess.com"]

[Event "Titled Tuesday Blitz May 10 Early 2022"]
[White "Turutin, Alexander"]
[Black "Namitbir Singh Walia"]
[WhiteFideId "4180623"]
[BlackFideId "35071068"]
[WhiteElo "2402"]
[BlackElo "1565"]
[Result "0-1"]
[Round "07"]
[TimeControl "180+1"]
[Date "2022.05.11"]
[WhiteClock "0:00:04"]
[BlackClock "0:00:43"]

1. e4 {[%clk 0:02:58]}  e5 {[%clk 0:02:58]} 2. Nf3 {[%clk 0:02:58]}  Nc6 {[%clk 0:02:59]} 3. Bb5 {[%clk 0:02:58]}  a6 {[%clk 0:02:59]} 4. Ba4 {[%clk 0:02:57]}  Nf6 {[%clk 0:03:00]} 5. O-O {[%clk 0:02:57]}  Be7 {[%clk 0:03:00]} 6. Re1 {[%clk 0:02:56]}  b5 {[%clk 0:03:01]} 7. Bb3 {[%clk 0:02:57]}  d6 {[%clk 0:03:02]} 8. c3 {[%clk 0:02:57]}  O-O {[%clk 0:03:02]} 9. h3 {[%clk 0:02:57]}  Nb8 {[%clk 0:03:03]} 10. d4 {[%clk 0:02:57]}  Nbd7 {[%clk 0:03:03]} 11. Nbd2 {[%clk 0:02:58]}  Bb7 {[%clk 0:03:04]} 12. a4 {[%clk 0:02:58]}  c5 {[%clk 0:03:03]} 13. d5 {[%clk 0:02:54]}  c4 {[%clk 0:03:00]} 14. Bc2 {[%clk 0:02:54]}  Nc5 {[%clk 0:02:51]} 15. Nf1 {[%clk 0:02:41]}  Re8 {[%clk 0:02:49]} 16. Ng3 {[%clk 0:02:41]}  g6 {[%clk 0:02:48]} 17. Be3 {[%clk 0:02:41]}  Bf8 {[%clk 0:02:45]} 18. Ra3 {[%clk 0:02:29]}  Nfd7 {[%clk 0:02:39]} 19. Qe2 {[%clk 0:02:24]}  Nb6 {[%clk 0:02:29]} 20. axb5 {[%clk 0:02:08]}  axb5 {[%clk 0:02:27]} 21. Rea1 {[%clk 0:02:08]}  Rxa3 {[%clk 0:02:13]} 22. Rxa3 {[%clk 0:02:09]}  Nba4 {[%clk 0:02:09]} 23. Bxa4 {[%clk 0:02:09]}  Nxa4 {[%clk 0:02:10]} 24. h4 {[%clk 0:02:09]}  Bc8 {[%clk 0:01:59]} 25. Bg5 {[%clk 0:01:22]}  Be7 {[%clk 0:01:52]} 26. Qe3 {[%clk 0:00:59]}  Bg4 {[%clk 0:01:42]} 27. Nh2 {[%clk 0:00:56]}  Bd7 {[%clk 0:01:28]} 28. Qd2 {[%clk 0:00:49]}  f6 {[%clk 0:01:23]} 29. Be3 {[%clk 0:00:47]}  f5 {[%clk 0:01:23]} 30. exf5 {[%clk 0:00:44]}  gxf5 {[%clk 0:01:24]} 31. Bg5 {[%clk 0:00:43]}  f4 {[%clk 0:00:59]} 32. Ne4 {[%clk 0:00:19]}  Bf5 {[%clk 0:00:58]} 33. Qe2 {[%clk 0:00:18]}  Bxe4 {[%clk 0:00:55]} 34. Bxe7 {[%clk 0:00:19]}  Qxe7 {[%clk 0:00:51]} 35. Qxe4 {[%clk 0:00:19]}  Qxh4 {[%clk 0:00:50]} 36. Nf3 {[%clk 0:00:18]}  Qh5 {[%clk 0:00:48]} 37. Ra1 {[%clk 0:00:10]}  Kh8 {[%clk 0:00:45]} 38. Re1 {[%clk 0:00:04]}  Rg8 {[%clk 0:00:43]} 0-1


[Site "https://www.chess.com"]

[Event "Titled Tuesday Blitz May 10 Early 2022"]
[White "Vifleemskaia, Svetlana"]
[Black "Cramling Bellon, Anna"]
[WhiteFideId "4129490"]
[BlackFideId "32009232"]
[WhiteElo "1929"]
[BlackElo "1905"]
[Result "1-0"]
[Round "07"]
[TimeControl "180+1"]
[Date "2022.05.11"]
[WhiteClock "0:00:11"]
[BlackClock "0:00:08"]

1. d4 {[%clk 0:03:00]}  Nf6 {[%clk 0:02:59]} 2. c4 {[%clk 0:03:00]}  e6 {[%clk 0:02:59]} 3. Nc3 {[%clk 0:03:00]}  Bb4 {[%clk 0:02:59]} 4. e3 {[%clk 0:03:00]}  b6 {[%clk 0:02:59]} 5. Ne2 {[%clk 0:03:01]}  Bb7 {[%clk 0:02:43]} 6. a3 {[%clk 0:02:58]}  Bxc3+ {[%clk 0:02:43]} 7. Nxc3 {[%clk 0:02:57]}  d5 {[%clk 0:02:44]} 8. cxd5 {[%clk 0:02:54]}  exd5 {[%clk 0:02:34]} 9. Bd3 {[%clk 0:02:50]}  Nbd7 {[%clk 0:02:32]} 10. O-O {[%clk 0:02:50]}  O-O {[%clk 0:02:32]} 11. b4 {[%clk 0:02:49]}  c5 {[%clk 0:02:31]} 12. bxc5 {[%clk 0:02:46]}  bxc5 {[%clk 0:02:32]} 13. Rb1 {[%clk 0:02:41]}  Bc6 {[%clk 0:02:27]} 14. Bd2 {[%clk 0:02:25]}  Rb8 {[%clk 0:02:21]} 15. Qc2 {[%clk 0:02:20]}  Qe7 {[%clk 0:02:11]} 16. a4 {[%clk 0:02:14]}  Rfc8 {[%clk 0:02:09]} 17. h3 {[%clk 0:02:08]}  cxd4 {[%clk 0:01:58]} 18. exd4 {[%clk 0:02:07]}  Nb6 {[%clk 0:01:58]} 19. Bf4 {[%clk 0:01:50]}  Bxa4 {[%clk 0:01:52]} 20. Qa2 {[%clk 0:01:03]}  Rxc3 {[%clk 0:01:09]} 21. Bxb8 {[%clk 0:01:01]}  Rxd3 {[%clk 0:01:09]} 22. Rxb6 {[%clk 0:00:38]}  axb6 {[%clk 0:01:09]} 23. Qxa4 {[%clk 0:00:37]}  h6 {[%clk 0:01:07]} 24. Qb5 {[%clk 0:00:33]}  Rxd4 {[%clk 0:01:01]} 25. Qxb6 {[%clk 0:00:33]}  Rb4 {[%clk 0:00:56]} 26. Bd6 {[%clk 0:00:23]}  Rxb6 {[%clk 0:00:53]} 27. Bxe7 {[%clk 0:00:23]}  Ne4 {[%clk 0:00:45]} 28. Rd1 {[%clk 0:00:23]}  Nc3 {[%clk 0:00:33]} 29. Rd3 {[%clk 0:00:20]}  d4 {[%clk 0:00:26]} 30. Bc5 {[%clk 0:00:17]}  Rb1+ {[%clk 0:00:25]} 31. Kh2 {[%clk 0:00:17]}  Rd1 {[%clk 0:00:04]} 32. Rxd1 {[%clk 0:00:15]}  Nxd1 {[%clk 0:00:05]} 33. Bxd4 {[%clk 0:00:16]}  Kf8 {[%clk 0:00:05]} 34. Kg1 {[%clk 0:00:15]}  Ke7 {[%clk 0:00:04]} 35. Kf1 {[%clk 0:00:14]}  Ke6 {[%clk 0:00:03]} 36. Ke2 {[%clk 0:00:13]}  Kd5 {[%clk 0:00:03]} 37. Bxg7 {[%clk 0:00:10]}  Nxf2 {[%clk 0:00:01]} 38. Kxf2 {[%clk 0:00:10]}  f5 {[%clk 0:00:02]} 39. Bxh6 {[%clk 0:00:09]}  Ke4 {[%clk 0:00:03]} 40. h4 {[%clk 0:00:09]}  f4 {[%clk 0:00:03]} 41. h5 {[%clk 0:00:07]}  Kf5 {[%clk 0:00:04]} 42. Kf3 {[%clk 0:00:08]}  Kf6 {[%clk 0:00:03]} 43. Bxf4 {[%clk 0:00:08]}  Kf7 {[%clk 0:00:04]} 44. g4 {[%clk 0:00:09]}  Kg8 {[%clk 0:00:05]} 45. g5 {[%clk 0:00:09]}  Kh7 {[%clk 0:00:06]} 46. Kg4 {[%clk 0:00:10]}  Kh8 {[%clk 0:00:07]} 47. Kf5 {[%clk 0:00:11]}  Kh7 {[%clk 0:00:08]} 48. g6+ {[%clk 0:00:10]}  Kh8 {[%clk 0:00:09]} 49. h6 {[%clk 0:00:11]}  Kg8 {[%clk 0:00:09]} 50. h7+ {[%clk 0:00:11]}  Kg7 {[%clk 0:00:08]} 51. Be5+ {[%clk 0:00:10]}  Kh6 {[%clk 0:00:08]} 52. h8=Q# {[%clk 0:00:11]} 1-0


[Site "https://www.chess.com"]

[Event "Titled Tuesday Blitz May 10 Early 2022"]
[White "Vlassov, Nikolai"]
[Black "Manukian, Artak"]
[WhiteFideId "4103360"]
[BlackFideId "13301373"]
[WhiteElo "2407"]
[BlackElo "2402"]
[Result "1/2-1/2"]
[Round "07"]
[TimeControl "180+1"]
[Date "2022.05.11"]
[WhiteClock "0:00:17"]
[BlackClock "0:00:08"]

1. e4 {[%clk 0:03:00]}  c6 {[%clk 0:02:44]} 2. d4 {[%clk 0:03:00]}  d5 {[%clk 0:02:43]} 3. e5 {[%clk 0:03:01]}  Bf5 {[%clk 0:02:35]} 4. Nc3 {[%clk 0:03:00]}  e6 {[%clk 0:02:34]} 5. g4 {[%clk 0:03:01]}  Bg6 {[%clk 0:02:34]} 6. Nge2 {[%clk 0:03:01]}  c5 {[%clk 0:02:33]} 7. Be3 {[%clk 0:03:00]}  Nc6 {[%clk 0:02:01]} 8. dxc5 {[%clk 0:03:00]}  Nxe5 {[%clk 0:01:53]} 9. Nf4 {[%clk 0:02:58]}  a6 {[%clk 0:01:47]} 10. Qe2 {[%clk 0:02:47]}  d4 {[%clk 0:01:34]} 11. O-O-O {[%clk 0:02:47]}  Bxc5 {[%clk 0:01:35]} 12. h4 {[%clk 0:02:39]}  Rc8 {[%clk 0:01:22]} 13. h5 {[%clk 0:02:37]}  Qb6 {[%clk 0:01:15]} 14. Na4 {[%clk 0:02:24]}  d3 {[%clk 0:01:05]} 15. Nxb6 {[%clk 0:02:12]}  dxe2 {[%clk 0:01:04]} 16. Nxc8 {[%clk 0:01:31]}  exd1=Q+ {[%clk 0:01:01]} 17. Kxd1 {[%clk 0:01:31]}  Be4 {[%clk 0:00:53]} 18. Bg2 {[%clk 0:01:22]}  Bxe3 {[%clk 0:00:42]} 19. fxe3 {[%clk 0:01:21]}  Bxg2 {[%clk 0:00:42]} 20. Nxg2 {[%clk 0:01:21]}  Kd7 {[%clk 0:00:42]} 21. Nb6+ {[%clk 0:01:16]}  Kc6 {[%clk 0:00:43]} 22. Na4 {[%clk 0:01:16]}  Nxg4 {[%clk 0:00:38]} 23. Ke2 {[%clk 0:01:15]}  N8f6 {[%clk 0:00:37]} 24. Nf4 {[%clk 0:01:13]}  Rd8 {[%clk 0:00:36]} 25. Nc3 {[%clk 0:01:11]}  b5 {[%clk 0:00:32]} 26. a3 {[%clk 0:01:11]}  a5 {[%clk 0:00:32]} 27. Rg1 {[%clk 0:01:10]}  b4 {[%clk 0:00:29]} 28. axb4 {[%clk 0:01:10]}  axb4 {[%clk 0:00:30]} 29. Na2 {[%clk 0:01:11]}  Kb5 {[%clk 0:00:29]} 30. Nc1 {[%clk 0:01:11]}  g5 {[%clk 0:00:27]} 31. hxg6 {[%clk 0:01:11]}  hxg6 {[%clk 0:00:28]} 32. Nb3 {[%clk 0:01:11]}  Ne5 {[%clk 0:00:27]} 33. Nd4+ {[%clk 0:01:11]}  Kb6 {[%clk 0:00:27]} 34. Rf1 {[%clk 0:01:01]}  Ne4 {[%clk 0:00:27]} 35. Ke1 {[%clk 0:00:56]}  Nc4 {[%clk 0:00:25]} 36. Ng2 {[%clk 0:00:41]}  f5 {[%clk 0:00:23]} 37. b3 {[%clk 0:00:39]}  Na3 {[%clk 0:00:23]} 38. Rh1 {[%clk 0:00:35]}  e5 {[%clk 0:00:22]} 39. Nf3 {[%clk 0:00:34]}  Nxc2+ {[%clk 0:00:22]} 40. Kf1 {[%clk 0:00:30]}  Rd1+ {[%clk 0:00:20]} 41. Nge1 {[%clk 0:00:28]}  Ng3+ {[%clk 0:00:18]} 42. Kg2 {[%clk 0:00:29]}  Nxh1 {[%clk 0:00:17]} 43. Nxc2 {[%clk 0:00:29]}  Rc1 {[%clk 0:00:14]} 44. Nxb4 {[%clk 0:00:28]}  Kb5 {[%clk 0:00:14]} 45. Nd5 {[%clk 0:00:27]}  e4 {[%clk 0:00:12]} 46. Nh4 {[%clk 0:00:23]}  f4 {[%clk 0:00:10]} 47. exf4 {[%clk 0:00:22]}  e3 {[%clk 0:00:10]} 48. Nxe3 {[%clk 0:00:22]}  Rc3 {[%clk 0:00:09]} 49. Nd5 {[%clk 0:00:20]}  Rd3 {[%clk 0:00:09]} 50. Nc7+ {[%clk 0:00:18]}  Kc6 {[%clk 0:00:09]} 51. Ne6 {[%clk 0:00:18]}  Ng3 {[%clk 0:00:09]} 52. Nxg6 {[%clk 0:00:18]}  Nf5 {[%clk 0:00:08]} 53. Ne5+ {[%clk 0:00:19]}  Kd5 {[%clk 0:00:08]} 54. Nxd3 {[%clk 0:00:20]}  Kxe6 {[%clk 0:00:08]} 55. Kf3 {[%clk 0:00:20]}  Nd4+ {[%clk 0:00:08]} 56. Ke4 {[%clk 0:00:21]}  Nxb3 {[%clk 0:00:09]} 57. f5+ {[%clk 0:00:21]}  Kf6 {[%clk 0:00:09]} 58. Kf4 {[%clk 0:00:18]}  Nd4 {[%clk 0:00:08]} 59. Nc5 {[%clk 0:00:17]}  Nxf5 {[%clk 0:00:08]} 1/2-1/2


[Site "https://www.chess.com"]

[Event "Titled Tuesday Blitz May 10 Early 2022"]
[White "Wagh Suyog"]
[Black "Melian, Juan Sebastian"]
[WhiteFideId "25071688"]
[BlackFideId "3706575"]
[WhiteElo "2181"]
[BlackElo "1851"]
[Result "1-0"]
[Round "07"]
[TimeControl "180+1"]
[Date "2022.05.11"]
[WhiteClock "0:00:08"]
[BlackClock "0:00:02"]

1. e4 {[%clk 0:02:53]}  c5 {[%clk 0:02:54]} 2. Nf3 {[%clk 0:02:53]}  e6 {[%clk 0:02:54]} 3. d4 {[%clk 0:02:53]}  cxd4 {[%clk 0:02:55]} 4. Nxd4 {[%clk 0:02:54]}  a6 {[%clk 0:02:55]} 5. c4 {[%clk 0:02:54]}  Qc7 {[%clk 0:02:56]} 6. Nc3 {[%clk 0:02:54]}  Nf6 {[%clk 0:02:56]} 7. Be3 {[%clk 0:02:54]}  d6 {[%clk 0:02:57]} 8. Be2 {[%clk 0:02:55]}  Nbd7 {[%clk 0:02:58]} 9. O-O {[%clk 0:02:55]}  b6 {[%clk 0:02:58]} 10. Rc1 {[%clk 0:02:56]}  Bb7 {[%clk 0:02:59]} 11. f3 {[%clk 0:02:56]}  Rc8 {[%clk 0:02:59]} 12. Re1 {[%clk 0:02:57]}  Be7 {[%clk 0:03:00]} 13. Bf1 {[%clk 0:02:57]}  O-O {[%clk 0:03:01]} 14. Qd2 {[%clk 0:02:58]}  Rfe8 {[%clk 0:03:01]} 15. Qf2 {[%clk 0:02:56]}  Qb8 {[%clk 0:03:00]} 16. Kh1 {[%clk 0:02:56]}  Ba8 {[%clk 0:03:00]} 17. Red1 {[%clk 0:02:57]}  Bf8 {[%clk 0:02:53]} 18. a3 {[%clk 0:02:57]}  d5 {[%clk 0:02:50]} 19. cxd5 {[%clk 0:02:53]}  exd5 {[%clk 0:02:50]} 20. Bxa6 {[%clk 0:02:52]}  dxe4 {[%clk 0:02:18]} 21. Bxc8 {[%clk 0:02:44]}  exf3 {[%clk 0:02:18]} 22. Bxd7 {[%clk 0:02:44]}  fxg2+ {[%clk 0:02:19]} 23. Kg1 {[%clk 0:02:44]}  Bd6 {[%clk 0:01:54]} 24. Nc6 {[%clk 0:02:36]}  Bxc6 {[%clk 0:01:49]} 25. Bxc6 {[%clk 0:02:36]}  Ng4 {[%clk 0:01:48]} 26. Kxg2 {[%clk 0:02:17]}  Nxf2 {[%clk 0:01:32]} 27. Bxe8 {[%clk 0:01:39]}  Nxd1 {[%clk 0:01:24]} 28. Rxd1 {[%clk 0:01:40]}  Qa8+ {[%clk 0:00:42]} 29. Rd5 {[%clk 0:01:25]}  g6 {[%clk 0:00:35]} 30. Bb5 {[%clk 0:01:17]}  Qb8 {[%clk 0:00:20]} 31. Bg1 {[%clk 0:01:13]}  Qc7 {[%clk 0:00:19]} 32. Be2 {[%clk 0:01:08]}  h5 {[%clk 0:00:16]} 33. Nb5 {[%clk 0:01:05]}  Qc6 {[%clk 0:00:15]} 34. Bf3 {[%clk 0:01:05]}  Qc2+ {[%clk 0:00:15]} 35. Kh1 {[%clk 0:01:03]}  Bc5 {[%clk 0:00:10]} 36. Nd4 {[%clk 0:00:54]}  Qxb2 {[%clk 0:00:08]} 37. a4 {[%clk 0:00:55]}  Qa2 {[%clk 0:00:08]} 38. Rd8+ {[%clk 0:00:52]}  Kh7 {[%clk 0:00:06]} 39. Bc6 {[%clk 0:00:47]}  Qa3 {[%clk 0:00:06]} 40. Rd7 {[%clk 0:00:43]}  Kh6 {[%clk 0:00:03]} 41. Bb5 {[%clk 0:00:34]}  Qc1 {[%clk 0:00:03]} 42. Nf3 {[%clk 0:00:24]}  Qa3 {[%clk 0:00:02]} 43. Rd3 {[%clk 0:00:22]}  Qc1 {[%clk 0:00:01]} 44. Kg2 {[%clk 0:00:19]}  g5 {[%clk 0:00:01]} 45. Bxc5 {[%clk 0:00:18]}  bxc5 {[%clk 0:00:02]} 46. Rd6+ {[%clk 0:00:17]}  Kg7 {[%clk 0:00:02]} 47. Rd5 {[%clk 0:00:15]}  g4 {[%clk 0:00:02]} 48. Nd2 {[%clk 0:00:15]}  Kh6 {[%clk 0:00:01]} 49. Ne4 {[%clk 0:00:14]}  Qc2+ {[%clk 0:00:01]} 50. Nd2 {[%clk 0:00:14]}  f5 {[%clk 0:00:01]} 51. Kf2 {[%clk 0:00:13]}  f4 {[%clk 0:00:01]} 52. Rd6+ {[%clk 0:00:12]}  Kg5 {[%clk 0:00:01]} 53. Be2 {[%clk 0:00:12]}  Kh4 {[%clk 0:00:02]} 54. Rd5 {[%clk 0:00:10]}  f3 {[%clk 0:00:02]} 55. Bf1 {[%clk 0:00:10]}  Qc3 {[%clk 0:00:02]} 56. Ne4 {[%clk 0:00:09]}  Qb2+ {[%clk 0:00:02]} 57. Kg1 {[%clk 0:00:08]}  Qf6 {[%clk 0:00:01]} 58. Ng3 {[%clk 0:00:08]}  Qg7 {[%clk 0:00:02]} 59. Rxh5# {[%clk 0:00:08]} 1-0


[Site "https://www.chess.com"]